{"text_format":"3","workbook":"xlsx","n_sheets":8,"sheets":["Instruções","Regulars de Rotina","Conhecidos Ocasionais","Perspectivas Potenciais","Plano de rede do 1° trimestre","Plano de rede do 2° trimestre","Plano de rede do 3° trimestre","Plano de rede do 4° trimestre"],"not_rendered":{"defined_names":7},"read":"whole","date_system":"1900"}

{"sheet":"Instruções","index":0,"n_rows":17,"n_cols":5,"rows_kept":17,"merged":[[0,0,0,2],[1,1,1,6],[2,1,2,6],[3,1,3,6],[4,1,4,6],[5,1,5,6],[6,1,6,6],[7,1,7,6],[8,1,8,6],[9,1,9,6],[10,1,10,6],[11,1,11,6]]}
["Controlador de Contato",null,null,"Instruções"]
[null,"1. Decida em qual categoria seu contato se encaixa:"]
[null,"• Rotinas Regulares - pessoas com quem você gostaria de manter contato regularmente"]
[null,"• Conhecidos Ocasionais - pessoas com quem você gostaria de fazer check-in algumas vezes ao ano"]
[null,"• Perspectivas em Potencial - pessoas/empresas que você gostaria de manter arquivadas para entrar em contato quando for a hora"]
[null,"2. Abra a guia da planilha de trabalho correspondente."]
[null,"3. Digite suas informações (para criar uma nova linha em uma célula, pressione Alt+Enter no Windows ou Option+Return no Mac)."]
[null,"Verifique aqui as novas instruções de linha para aplicativos móveis do Excel."]
[null,"4. Na colunaData de Acompanhamento, exclua a data/fórmula da amostra, insira quando deseja entrar em contato com eles, \ne, em seguida, pressione Enter."]
[null,"5. A colunaData de Acompanhamento mostrará vermelho quando a data estiver muito próxima, amarelo quando estiver se aproximando e \nverde quando você tiver tempo de sobra."]
[null,"6. À medida que a data de acompanhamento se aproxima, a cor mudará de acordo."]
[null,"7. Depois de contactar com seu contato, digite SIM na caixa Concluído? coluna. A data ficará cinzenta. "]
[null,"8. Se desejar entrar em contato com eles novamente, substitua SIM por NÃO e digite uma nova Data de Acompanhamento."]
[null,null,"Vermelho","Amarelo","Verde"]
[null,"Regulars de Rotina","1 a 3 dias de distância","4 a 7 dias de distância","8 a 14+ dias de distância"]
[null,"Conhecidos Ocasionais","1 a 7 dias de distância","8 a 45 dias de distância","46 a 90+ dias de distância"]
[null,"Perspectivas Potenciais","1 a 14 dias de distância","15 a 60 dias de distância","60 a 120+ dias de distância"]

{"sheet":"Regulars de Rotina","index":1,"n_rows":7,"n_cols":8,"rows_kept":7,"merged":[[0,0,0,2]]}
["Controlador de Contato",null,null,"Rotinas Regulares"]
[]
["Nome","Empresa","Informações de contato","Onde Nos Encontramos","Anotações","Data de Acompanhamento","Concluído","Anotações da Conversa"]
["Paulo Araújo","Adventure Works","Gerente de Projetos\ngarth@adventure-works.com\n(234) 555-0134\nadventure-works.com\nlinkedin.com/in/garth-fort","Feiras profissionais de 2010","Pergunte sobre a filha Sandy e como está a remodelação. Tem aversão a grandes grupos e comida picante.",{"$f":"TODAY()+8","v":"2021-07-20"},"NÃO"]
["Nome","Nome da Empresa","Cargo\nEndereço de email\nNúmero do telefone\nSite\nLinks de perfil social\n","Localização","Coloque quaisquer anotações que deseja lembrar sobre essa pessoa; onde você se encontrou, o que você falou, o que deseja mencionar na próxima vez que falar, etc.",{"$f":"TODAY()-3","v":"2021-07-09"},"SIM"]
["Nome","Nome da empresa","Cargo\nEndereço de email\nNúmero do telefone\nSite\nLinks de perfil social\n","Local","Coloque quaisquer anotações que deseja lembrar sobre essa pessoa; onde você se encontrou, o que você falou, o que deseja mencionar na próxima vez que falar, etc.",{"$f":"TODAY()+-3","v":"2021-07-09"},"NÃO"]
["Nome","Nome da Empresa","Cargo\nEndereço de email\nNúmero do telefone\nSite\nLinks de perfil social\n","Localização","Coloque quaisquer anotações que deseja lembrar sobre essa pessoa; onde você se encontrou, o que você falou, o que deseja mencionar na próxima vez que falar, etc.",{"$f":"TODAY()+6","v":"2021-07-18"},"NÃO"]

{"sheet":"Conhecidos Ocasionais","index":2,"n_rows":7,"n_cols":8,"rows_kept":7,"merged":[[0,0,0,2]]}
["Controlador de Contato",null,null,"Conhecidos Ocasionais"]
[]
["Nome","Empresa","Informações de contato","Onde Nos Encontramos","Anotações","Data de Acompanhamento","Concluído","Anotações da Conversa"]
["Paulo Araújo","Adventure Works","Gerente de recursos\ngarth@adventure-works.com\n(434) 555-0123\nwww.adventure-works.com\nlinkedin.com/in/garth-fort","Férias em Vermont em 2016","Útil tanto para contato de contratação como para perguntas de marketing",{"$f":"TODAY()+90","v":"2021-10-10"},"NÃO"]
["Nome","Nome da Empresa","Cargo\nEndereço de email\nNúmero do telefone\nSite\nLinks de perfil social\n","Localização","Coloque quaisquer anotações que deseja lembrar sobre essa pessoa; onde você se encontrou, o que você falou, o que deseja mencionar na próxima vez que falar, etc.",{"$f":"TODAY()-3","v":"2021-07-09"},"SIM"]
["Nome","Nome da empresa","Cargo\nEndereço de email\nNúmero do telefone\nSite\nLinks de perfil social\n","Local","Coloque quaisquer anotações que deseja lembrar sobre essa pessoa; onde você se encontrou, o que você falou, o que deseja mencionar na próxima vez que falar, etc.",{"$f":"TODAY()+-3","v":"2021-07-09"},"NÃO"]
["Nome","Nome da Empresa","Cargo\nEndereço de email\nNúmero do telefone\nSite\nLinks de perfil social\n","Localização","Coloque quaisquer anotações que deseja lembrar sobre essa pessoa; onde você se encontrou, o que você falou, o que deseja mencionar na próxima vez que falar, etc.",{"$f":"TODAY()+40","v":"2021-08-21"},"NÃO"]

{"sheet":"Perspectivas Potenciais","index":3,"n_rows":7,"n_cols":8,"rows_kept":7,"merged":[[0,0,0,2]]}
["Controlador de Contato",null,null,"Perspectivas em Potencial"]
[]
["Nome","Empresa","Informações de contato","Onde Nos Encontramos","Anotações","Data de Acompanhamento","Concluído","Anotações da Conversa"]
["Paulo Araújo","Freelancer","Designer\npessoa@exemplo.com\n425-555-0123\nexamplo.com\nlinkedin.com/in/garth-fort","Formatura do filho em 2016","Graduação recente - muito habilidoso. Pode ser útil para futuros clientes.",{"$f":"TODAY()+89","v":"2021-10-09"},"NÃO"]
["Nome","Nome da Empresa","Cargo\nEndereço de email\nNúmero do telefone\nSite\nLinks de perfil social\n","Localização","Coloque quaisquer anotações que deseja lembrar sobre essa pessoa; onde você se encontrou, o que você falou, o que deseja mencionar na próxima vez que falar, etc.",{"$f":"TODAY()-3","v":"2021-07-09"},"SIM"]
["Nome","Nome da empresa","Cargo\nEndereço de email\nNúmero do telefone\nSite\nLinks de perfil social\n","Local","Coloque quaisquer anotações que deseja lembrar sobre essa pessoa; onde você se encontrou, o que você falou, o que deseja mencionar na próxima vez que falar, etc.",{"$f":"TODAY()+-3","v":"2021-07-09"},"NÃO"]
["Nome","Nome da Empresa","Cargo\nEndereço de email\nNúmero do telefone\nSite\nLinks de perfil social\n","Localização","Coloque quaisquer anotações que deseja lembrar sobre essa pessoa; onde você se encontrou, o que você falou, o que deseja mencionar na próxima vez que falar, etc.",{"$f":"TODAY()+30","v":"2021-08-11"},"NÃO"]

{"sheet":"Plano de rede do 1° trimestre","index":4,"n_rows":20,"n_cols":6,"rows_kept":20,"merged":[[0,0,0,3],[2,0,2,3],[4,0,4,3],[14,5,17,5],[18,0,18,3]]}
["Plano de Expansão de Rede"]
["Instruções"]
["Escreva como você planeja expandir sua rede neste trimestre (ou seja, fazer mais ligações, viajar mais etc.). Então, toda vez que você conseguir um novo contato, altere o número de Contatos Reais Realizados para acompanhar e ver o quão perto você está de sua meta."]
[]
["Como eu planejo expandir minha rede neste trimestre"]
["1. Fazer mais chamadas telefônicas"]
["2. Viajar mais"]
[]
[]
[]
[]
[]
[]
["Meta de Contato Trimestral","Prazo","Contatos Trimestrais Reais Realizados","Resultados"]
[20,{"$f":"TODAY()","v":"2021-07-12"},12,{"$f":"IF(tblGoals[[#This Row],[Meta de Contato Trimestral]]>0,tblGoals[[#This Row],[Contatos Trimestrais Reais Realizados]]/tblGoals[[#This Row],[Meta de Contato Trimestral]],\"\")","v":{"v":0.6,"d":"60%"}},null,"0% - 25%\n26% - 50%\n51% - 75%\n76% - 100%\n\nAlterações de cor com base na porcentagem alcançada"]
[{"$nulls":3},{"$f":"IF(tblGoals[[#This Row],[Meta de Contato Trimestral]]>0,tblGoals[[#This Row],[Contatos Trimestrais Reais Realizados]]/tblGoals[[#This Row],[Meta de Contato Trimestral]],\"\")","v":""}]
[{"$nulls":3},{"$f":"IF(tblGoals[[#This Row],[Meta de Contato Trimestral]]>0,tblGoals[[#This Row],[Contatos Trimestrais Reais Realizados]]/tblGoals[[#This Row],[Meta de Contato Trimestral]],\"\")","v":""}]
[]
["Reflexão sobre o resultado / Anotações para melhorias"]
["Chegou perto. Em vez disso, experimente ligar no horário do almoço."]

{"sheet":"Plano de rede do 2° trimestre","index":5,"n_rows":20,"n_cols":6,"rows_kept":20,"merged":[[0,0,0,3],[2,0,2,3],[4,0,4,3],[14,5,17,5],[18,0,18,3]]}
["Plano de Expansão de Rede"]
["Instruções"]
["Escreva como você planeja expandir sua rede neste trimestre (ou seja, fazer mais ligações, viajar mais etc.). Então, toda vez que você conseguir um novo contato, altere o número de Contatos Reais Realizados para acompanhar e ver o quão perto você está de sua meta."]
[]
["Como eu planejo expandir minha rede neste trimestre"]
["1. Fazer mais chamadas telefônicas"]
["2. Viajar mais"]
[]
[]
[]
[]
[]
[]
["Meta de Contato Trimestral","Prazo","Contatos Trimestrais Reais Realizados","Resultados"]
[20,{"$f":"TODAY()","v":"2021-07-12"},12,{"$f":"IF(tblGoals3[[#This Row],[Meta de Contato Trimestral]]>0,tblGoals3[[#This Row],[Contatos Trimestrais Reais Realizados]]/tblGoals3[[#This Row],[Meta de Contato Trimestral]],\"\")","v":{"v":0.6,"d":"60%"}},null,"0% - 25%\n26% - 50%\n51% - 75%\n76% - 100%\n\nAlterações de cor com base na porcentagem alcançada"]
[{"$nulls":3},{"$f":"IF(tblGoals3[[#This Row],[Meta de Contato Trimestral]]>0,tblGoals3[[#This Row],[Contatos Trimestrais Reais Realizados]]/tblGoals3[[#This Row],[Meta de Contato Trimestral]],\"\")","v":""}]
[{"$nulls":3},{"$f":"IF(tblGoals3[[#This Row],[Meta de Contato Trimestral]]>0,tblGoals3[[#This Row],[Contatos Trimestrais Reais Realizados]]/tblGoals3[[#This Row],[Meta de Contato Trimestral]],\"\")","v":""}]
[]
["Reflexão sobre o resultado / Anotações para melhorias"]
["Chegou perto. Em vez disso, experimente ligar no horário do almoço."]

{"sheet":"Plano de rede do 3° trimestre","index":6,"n_rows":20,"n_cols":6,"rows_kept":20,"merged":[[0,0,0,3],[2,0,2,3],[4,0,4,3],[14,5,17,5],[18,0,18,3]]}
["Plano de Expansão de Rede"]
["Instruções"]
["Escreva como você planeja expandir sua rede neste trimestre (ou seja, fazer mais ligações, viajar mais etc.). Então, toda vez que você conseguir um novo contato, altere o número de Contatos Reais Realizados para acompanhar e ver o quão perto você está de sua meta."]
[]
["Como eu planejo expandir minha rede neste trimestre"]
["1. Fazer mais chamadas telefônicas"]
["2. Viajar mais"]
[]
[]
[]
[]
[]
[]
["Meta de Contato Trimestral","Prazo","Contatos Trimestrais Reais Realizados","Resultados"]
[20,{"$f":"TODAY()","v":"2021-07-12"},12,{"$f":"IF(tblGoals34[[#This Row],[Meta de Contato Trimestral]]>0,tblGoals34[[#This Row],[Contatos Trimestrais Reais Realizados]]/tblGoals34[[#This Row],[Meta de Contato Trimestral]],\"\")","v":{"v":0.6,"d":"60%"}},null,"0% - 25%\n26% - 50%\n51% - 75%\n76% - 100%\n\nAlterações de cor com base na porcentagem alcançada"]
[{"$nulls":3},{"$f":"IF(tblGoals34[[#This Row],[Meta de Contato Trimestral]]>0,tblGoals34[[#This Row],[Contatos Trimestrais Reais Realizados]]/tblGoals34[[#This Row],[Meta de Contato Trimestral]],\"\")","v":""}]
[{"$nulls":3},{"$f":"IF(tblGoals34[[#This Row],[Meta de Contato Trimestral]]>0,tblGoals34[[#This Row],[Contatos Trimestrais Reais Realizados]]/tblGoals34[[#This Row],[Meta de Contato Trimestral]],\"\")","v":""}]
[]
["Reflexão sobre o resultado / Anotações para melhorias"]
["Chegou perto. Em vez disso, experimente ligar no horário do almoço."]

{"sheet":"Plano de rede do 4° trimestre","index":7,"n_rows":20,"n_cols":6,"rows_kept":20,"merged":[[0,0,0,3],[2,0,2,3],[4,0,4,3],[14,5,17,5],[18,0,18,3]]}
["Plano de Expansão de Rede"]
["Instruções"]
["Escreva como você planeja expandir sua rede neste trimestre (ou seja, fazer mais ligações, viajar mais etc.). Então, toda vez que você conseguir um novo contato, altere o número de Contatos Reais Realizados para acompanhar e ver o quão perto você está de sua meta."]
[]
["Como eu planejo expandir minha rede neste trimestre"]
["1. Fazer mais chamadas telefônicas"]
["2. Viajar mais"]
[]
[]
[]
[]
[]
[]
["Meta de Contato Trimestral","Prazo","Contatos Trimestrais Reais Realizados","Resultados"]
[20,{"$f":"TODAY()","v":"2021-07-12"},12,{"$f":"IF(tblGoals348[[#This Row],[Meta de Contato Trimestral]]>0,tblGoals348[[#This Row],[Contatos Trimestrais Reais Realizados]]/tblGoals348[[#This Row],[Meta de Contato Trimestral]],\"\")","v":{"v":0.6,"d":"60%"}},null,"0% - 25%\n26% - 50%\n51% - 75%\n76% - 100%\n\nAlterações de cor com base na porcentagem alcançada"]
[{"$nulls":3},{"$f":"IF(tblGoals348[[#This Row],[Meta de Contato Trimestral]]>0,tblGoals348[[#This Row],[Contatos Trimestrais Reais Realizados]]/tblGoals348[[#This Row],[Meta de Contato Trimestral]],\"\")","v":""}]
[{"$nulls":3},{"$f":"IF(tblGoals348[[#This Row],[Meta de Contato Trimestral]]>0,tblGoals348[[#This Row],[Contatos Trimestrais Reais Realizados]]/tblGoals348[[#This Row],[Meta de Contato Trimestral]],\"\")","v":""}]
[]
["Reflexão sobre o resultado / Anotações para melhorias"]
["Chegou perto. Em vez disso, experimente ligar no horário do almoço."]